[Event "Serbian League 2024"]
[Site "Bajina Basta"]
[Date "2024.09.28"]
[Round "1.1"]
[White "Adhiban, B.."]
[Black "Markus, Robert"]
[Result "1/2-1/2"]
[ECO "E69"]
[WhiteElo "2537"]
[BlackElo "2586"]
[Annotator "TA"]
[PlyCount "23"]
[EventDate "2024.09.26"]
[EventType "team-tourn"]
[EventCountry "SRB"]
[SourceTitle "playchess.com"]
[Source "ChessBase"]
[SourceQuality "1"]
[TimeControl "40/5400+30:1800+30"]

{[%evp 18,23,25,36,35,27,52,38]} 1. d4 {[%emt 0:00:12]} Nf6 {[%emt 0:00:07]} 2. Nf3 {[%emt 0:00:04]} d6 {[%emt 0:00:06]} 3. g3 {[%emt 0:00:47]} g6 {[%emt 0:00:12]} 4. Bg2 {[%emt 0:00:04]} Bg7 {[%emt 0:00:07]} 5. O-O {[%emt 0:01:18]} O-O {[%emt 0:00:09]} 6. c4 {[%emt 0:00:05]} Nbd7 {[%emt 0:00:16]} 7. Nc3 {[%emt 0:00:17]} e5 {[%emt 0:00:16]} 8. e4 {[%emt 0:00:42]} exd4 {[%emt 0:00:33]} 9. Nxd4 {[%emt 0:00:04]} Re8 {[%emt 0:00:10]} 10. h3 {[%emt 0:00:15]} Nc5 {[%emt 0:00:29]} 11. Re1 {[%emt 0:00:21]} c6 {[%emt 0:00:16]} 12. Bf4 {[%emt 0:03:03] Weighted Error Value: White=0.00 (flawless) /Black=0.13 (very precise) .  OK:         	White=1     	---} 1/2-1/2

[Event "Serbian League 2024"]
[Site "Bajina Basta"]
[Date "2024.09.28"]
[Round "1.4"]
[White "Kosic, Dragan"]
[Black "Zajic, Milan"]
[Result "1/2-1/2"]
[ECO "D14"]
[WhiteElo "2371"]
[BlackElo "2404"]
[Annotator "RC"]
[PlyCount "22"]
[EventDate "2024.09.26"]
[EventType "team-tourn"]
[EventCountry "SRB"]
[SourceTitle "playchess.com"]
[Source "ChessBase"]
[SourceQuality "1"]
[TimeControl "40/5400+30:1800+30"]

1. d4 {[%emt 0:00:07]} d5 {[%emt 0:00:04]} 2. c4 {[%emt 0:00:06]} c6 {[%emt 0:00:05]} 3. Nc3 {[%emt 0:00:04]} Nf6 {[%emt 0:00:07]} 4. cxd5 {[%emt 0:00:04]} cxd5 {[%emt 0:00:05]} 5. Bf4 {[%emt 0:00:05]} Nc6 {[%emt 0:00:17]} 6. e3 {[%emt 0:00:09]} Bf5 {[%emt 0:00:50]} 7. Nf3 {[%emt 0:00:06]} e6 {[%emt 0:01:00]} 8. Bd3 {[%emt 0:00:05]} Bxd3 {[%emt 0:00:10]} 9. Qxd3 {[%emt 0:00:03]} Be7 {[%emt 0:01:52]} 10. h3 {[%emt 0:00:06]} O-O {[%emt 0:00:16]} 11. O-O {[%emt 0:00:03]} Rc8 {[%emt 0:00:22]} 1/2-1/2

[Event "Serbian League 2024"]
[Site "Bajina Basta"]
[Date "2024.09.28"]
[Round "1.5"]
[White "Roganovic, Milos"]
[Black "Miljkovic, Miroslav D"]
[Result "1/2-1/2"]
[ECO "B33"]
[WhiteElo "2434"]
[BlackElo "2420"]
[Annotator "RC"]
[PlyCount "22"]
[EventDate "2024.09.26"]
[EventType "team-tourn"]
[EventCountry "SRB"]
[SourceTitle "playchess.com"]
[Source "ChessBase"]
[SourceQuality "1"]
[TimeControl "40/5400+30:1800+30"]

1. e4 {[%emt 0:00:04]} c5 {[%emt 0:00:09]} 2. Nf3 {[%emt 0:00:21]} Nc6 {[%emt 0:00:09]} 3. d4 {[%emt 0:00:12]} cxd4 {[%emt 0:00:13]} 4. Nxd4 {[%emt 0:00:08]} Nf6 {[%emt 0:00:19]} 5. Nc3 {[%emt 0:00:11]} e5 {[%emt 0:00:27]} 6. Ndb5 {[%emt 0:00:10]} d6 {[%emt 0:00:12]} 7. Bg5 {[%emt 0:00:09]} a6 {[%emt 0:00:10]} 8. Na3 {[%emt 0:00:18]} b5 {[%emt 0:00:10]} 9. Nd5 {[%emt 0:01:03]} Be7 {[%emt 0:00:13]} 10. Bxf6 {[%emt 0:00:26]} Bxf6 {[%emt 0:00:06]} 11. c3 {[%emt 0:00:15]} Bg5 {[%emt 0:00:06]} 1/2-1/2

[Event "Serbian League 2024"]
[Site "Bajina Basta"]
[Date "2024.09.28"]
[Round "1.6"]
[White "Laketic, Gojko"]
[Black "Toth, Aleksandar"]
[Result "1/2-1/2"]
[ECO "C47"]
[WhiteElo "2265"]
[BlackElo "2333"]
[Annotator "RC"]
[PlyCount "21"]
[EventDate "2024.09.26"]
[EventType "team-tourn"]
[EventCountry "SRB"]
[SourceTitle "playchess.com"]
[Source "ChessBase"]
[SourceQuality "1"]
[TimeControl "40/5400+30:1800+30"]

1. e4 {[%emt 0:00:24]} e5 {[%emt 0:00:05]} 2. Nf3 {[%emt 0:00:06]} Nc6 {[%emt 0:00:10]} 3. d4 {[%emt 0:00:46]} exd4 {[%emt 0:00:24]} 4. Nxd4 {[%emt 0:00:13]} Nf6 {[%emt 0:00:12]} 5. Nc3 {[%emt 0:00:47]} Bb4 {[%emt 0:00:17]} 6. Nxc6 {[%emt 0:00:28]} bxc6 {[%emt 0:00:19]} 7. Bd3 {[%emt 0:00:24]} d5 {[%emt 0:00:10]} 8. exd5 {[%emt 0:00:06]} cxd5 {[%emt 0:00:11]} 9. O-O {[%emt 0:00:21]} O-O {[%emt 0:00:16]} 10. Bg5 {[%emt 0:01:01]} c6 {[%emt 0:00:09]} 11. Qf3 {[%emt 1:31:24]} 1/2-1/2

[Event "Serbian League 2024"]
[Site "Bajina Basta"]
[Date "2024.09.28"]
[Round "1.7"]
[White "Kuybokarov, Temur"]
[Black "Krstulovic, Alex"]
[Result "1-0"]
[ECO "C42"]
[WhiteElo "2562"]
[BlackElo "2452"]
[Annotator "TA"]
[PlyCount "79"]
[EventDate "2024.09.26"]
[EventType "team-tourn"]
[EventCountry "SRB"]
[SourceTitle "playchess.com"]
[Source "ChessBase"]
[SourceQuality "1"]
[TimeControl "40/5400+30:1800+30"]

{[%evp 18,79,29,25,33,27,16,16,24,25,30,29,33,16,46,31,39,62,75,81,58,67,59,79,84,89,85,87,87,84,70,84,82,84,90,97,105,86,96,68,93,89,96,85,82,82,88,75,76,75,79,80,75,75,270,283,264,275,383,411,411,407,406,400]} 1. e4 {[%emt 0:00:04]} e5 {[%emt 0:00:18]} 2. Nf3 {[%emt 0:00:14]} Nf6 {[%emt 0:00:07]} 3. Nxe5 {[%emt 0:00:25]} d6 {[%emt 0:00:15]} 4. Nf3 {[%emt 0:00:34]} Nxe4 {[%emt 0:00:07]} 5. d4 {[%emt 0:00:25]} d5 {[%emt 0:00:25]} 6. Bd3 {[%emt 0:00:15]} Bd6 {[%emt 0:00:55]} 7. O-O {[%emt 0:01:06]} O-O {[%emt 0:00:12]} 8. c4 {[%emt 0:00:24]} c6 {[%emt 0:00:05]} 9. Re1 {[%emt 0:01:45]} Bf5 {[%emt 0:01:00]} 10. Qb3 {[%emt 0:00:46]} Qd7 {[%emt 0:00:32]} 11. Nc3 {[%emt 0:11:39]} Nxc3 {[%emt 0:00:11]} 12. Bxf5 {[%emt 0:00:18]} Qxf5 {[%emt 0:00:05] The position is equal.} 13. Qxb7 {[%emt 0:03:50]} (13. Qxc3 dxc4 14. Qxc4 Nd7 $11) (13. bxc3 {simplifies} b6 14. cxd5 cxd5 15. Qb5) 13... Qd7 {[%emt 0:30:27]} 14. Qxd7 {[%emt 0:08:11]} (14. Qxa8 Na4 (14... Na6 15. Qxf8+ Bxf8 16. bxc3 $16) 15. c5 (15. cxd5 $2 cxd5 $19) 15... Na6 $19) 14... Nxd7 {[%emt 0:00:13]} 15. c5 {[%emt 0:00:48]} Bxc5 {[%emt 0:04:53]} 16. dxc5 {[%emt 0:00:40]} Ne4 {[%emt 0:00:24][%cal Bc3e4,Be4f6,Bf6e8][%mdl 32]} 17. Nd4 {[%emt 0:10:06][%cal Bf3d4,Bd4f5,Bf5e7][%mdl 32]} Rfc8 {[%emt 0:03:14]} 18. b4 {[%emt 0:06:11]} a5 {[%emt 0:06:37]} 19. f3 {[%emt 0:02:19]} Nef6 {[%emt 0:08:58]} 20. Nf5 {[%emt 0:06:03]} Re8 {[%emt 0:03:33]} 21. Rxe8+ {[%emt 0:03:00]} Nxe8 {[%emt 0:00:32]} 22. Ne7+ {[%emt 0:02:16]} Kf8 {[%emt 0:00:47]} 23. Nxc6 {[%emt 0:00:08] White is more active.} axb4 {[%emt 0:00:06]} 24. Nxb4 {[%emt 0:00:27] c6 would now be deadly.} Nxc5 {[%emt 0:00:53] [#]} 25. Be3 $1 {[%emt 0:01:15]} (25. Nxd5 Nb3 26. Rb1 (26. axb3 $2 {too greedy.} Rxa1 27. h3 Rxc1+ $19) (26. Nb6 Ra5 $11) 26... Nxc1 27. Rxc1 Rxa2 $15) 25... d4 {[%emt 0:09:38]} 26. Bxd4 {[%emt 0:00:10]} Ne6 {[%emt 0:00:07]} 27. Bf2 {[%emt 0:04:03]} Ra3 {[%emt 0:04:09]} 28. Rb1 {[%emt 0:07:56]} Nd6 {[%emt 0:03:58]} 29. Rb3 {[%emt 0:00:46]} Ra4 {[%emt 0:01:09]} 30. Bg3 {[%emt 0:00:39]} Nf5 {[%emt 0:07:59]} 31. Nd5 {[%emt 0:02:51] Threatening mate with Rb8+.} f6 {[%emt 0:00:14]} 32. Nc3 {[%emt 0:00:52]} Rc4 {[%emt 0:00:54]} 33. Be1 {[%emt 0:00:55]} Kf7 {[%emt 0:04:51]} 34. Rb7+ {[%emt 0:05:38]} Kg6 {[%emt 0:00:09]} 35. a4 {[%emt 0:00:33][%cal Ba2a4,Ba4a5][%mdl 32]} Nc5 $2 {[%emt 0:03:39] Black cannot hold the game after this.} (35... Nd8 $16 36. Rb6 Nc6) 36. Rc7 $18 {[%emt 0:00:48]} Ne3 {[%emt 0:00:05]} 37. a5 {[%emt 0:03:17]} Nd3 {[%emt 0:00:39]} 38. Rxc4 {[%emt 0:02:15] White is winning.} Nxc4 {[%emt 0:00:06] [#]} 39. Nd5 $1 {[%emt 0:02:20][%cal Oa5a6] Hoping for a6!} Nc5 {[%emt 0:03:16]} (39... Nxe1 $2 {is the wrong capture.} 40. a6 $18) (39... Nd6 40. a6) 40. Nc7 {[%emt 0:00:11] Weighted Error Value: White=0.01 (flawless) /Black=0.22 (precise) .  Loses game:     	---       	Black=1      Inaccurate:     	---       	Black=2      OK:         	White=19    	Black=14     Best:        	White=4     	Black=1      Strong:       	White=1     	---} 1-0

[Event "Serbian League 2024"]
[Site "Bajina Basta"]
[Date "2024.09.28"]
[Round "1.8"]
[White "Popovic, Dusan"]
[Black "Sychev, Klementy"]
[Result "1/2-1/2"]
[ECO "C42"]
[WhiteElo "2494"]
[BlackElo "2532"]
[Annotator "TA"]
[PlyCount "36"]
[EventDate "2024.09.26"]
[EventType "team-tourn"]
[EventCountry "SRB"]
[SourceTitle "playchess.com"]
[Source "ChessBase"]
[SourceQuality "1"]
[TimeControl "40/5400+30:1800+30"]

{[%evp 18,36,69,60,71,62,75,57,59,53,61,56,55,52,69,53,68,45,84,78,52]} 1. e4 {[%emt 0:00:17]} e5 {[%emt 0:00:47]} 2. Nf3 {[%emt 0:01:41]} Nf6 {[%emt 0:01:17][%cal Bg8f6,Bf6e4,Be4d2][%mdl 32] EV=13.59} 3. Nxe5 {[%emt 0:01:00]} d6 {[%emt 0:00:37]} 4. Nf3 {[%emt 0:00:06]} Nxe4 {[%emt 0:00:08]} 5. d4 {[%emt 0:01:55]} d5 {[%emt 0:00:48]} 6. Bd3 {[%emt 0:01:01]} Nc6 {[%emt 0:04:55]} 7. O-O {[%emt 0:02:28]} Be7 {[%emt 0:01:00]} 8. Nbd2 {[%emt 0:01:22]} Nxd2 {[%emt 0:03:50]} 9. Bxd2 {[%emt 0:00:04]} Bg4 {[%emt 0:00:13]} 10. c3 $1 {[%emt 0:02:24]} O-O {[%emt 0:01:04] C42: Petroff Verdediging: 3 Pxe5 en ongebruikelijke Wit 3e zetten.} 11. h3 {[%emt 0:01:22]} Bh5 {[%emt 0:00:39] OK} 12. g3 {[%emt 0:02:55]} Qd7 {[%emt 0:04:35] OK. Wit staat iets beter.} 13. Kg2 {[%emt 0:02:24][%cal Of3e5] OK} Bg6 {[%emt 0:01:17] OK} 14. Qc2 {[%emt 0:01:46] 14.Bf4 is nu de hoofdvariant geworden.} (14. Bxg6 $5 {lijkt wild.} fxg6 15. Qc2 Rae8 16. Rfe1) 14... Bxd3 {[%emt 0:02:18] OK} 15. Qxd3 {[%emt 0:00:13]} a6 {[%emt 0:00:45] OK} 16. Rae1 {[%emt 0:03:22] OK} Rae8 {[%emt 0:01:22] OK} 17. Bf4 {[%emt 0:00:52]} f6 {[%emt 0:06:31] Onnauwkeurig} 18. h4 {[%emt 0:04:43] Wit heeft actievere stukken. OK} Bd6 $146 {[%emt 0:02:53] Blunder waarde: Wit=0.07 (foutloos) /Zwart=0.06 (foutloos) .  Onnauwkeurig:    	---       	Zwart=1      OK:         	Wit=3      	Zwart=6} ({Predecessor:} 18... Nd8 19. h5 Bd6 20. Bxd6 Qxd6 21. Nh4 Qd7 22. Qf3 Re6 23. Nf5 Rfe8 24. Re3 c6 {½-½ Maia,V (2329)-Landers,J (2126) WZ-ch sf09 email 2018}) 1/2-1/2

[Event "Serbian League 2024"]
[Site "Bajina Basta"]
[Date "2024.09.28"]
[Round "1.9"]
[White "Maksimovic, Bojan"]
[Black "Sedlak, Nikola"]
[Result "1/2-1/2"]
[ECO "D05"]
[WhiteElo "2503"]
[BlackElo "2401"]
[Annotator "TA"]
[PlyCount "88"]
[EventDate "2024.09.26"]
[EventType "team-tourn"]
[EventCountry "SRB"]
[SourceTitle "playchess.com"]
[Source "ChessBase"]
[SourceQuality "1"]
[TimeControl "40/5400+30:1800+30"]

{[%evp 16,87,16,4,12,12,24,16,17,12,23,0,0,0,0,0,0,0,0,-9,-7,-6,-4,-5,-11,-8,-4,-2,-11,-6,42,42,710,-81,-80,-82,-75,-82,-84,-80,-79,-77,-77,-83,-77,-118,-116,-102,-59,-55,-44,-48,-44,-48,-38,-49,-8,-8,-8,-8,-5,-3,-2,-2,-2,-2,-2,-8,-8,-8,-8,-67,-67,-67]} 1. d4 {[%emt 0:00:13]} e6 {[%emt 0:00:20]} 2. Nf3 {[%emt 0:00:49]} Nf6 {[%emt 0:00:50]} 3. e3 {[%emt 0:01:01]} d5 {[%emt 0:00:32]} 4. Bd3 {[%emt 0:00:28]} c5 {[%emt 0:00:35]} 5. b3 {[%emt 0:01:35]} Nc6 {[%emt 0:00:40]} 6. O-O {[%emt 0:02:20]} Bd6 {[%emt 0:00:49]} 7. Bb2 {[%emt 0:01:49]} O-O {[%emt 0:01:04]} 8. Nbd2 {[%emt 0:11:32]} cxd4 {[%emt 0:04:28]} 9. exd4 {[%emt 0:01:18]} b6 {[%emt 0:00:31]} 10. a3 {[%emt 0:03:37]} Bb7 {[%emt 0:00:08]} 11. Re1 {[%emt 0:01:46]} Rc8 {[%emt 0:07:51] The position is equal.} 12. Ne5 {[%emt 0:12:10]} Re8 {[%emt 0:06:46]} 13. Re3 {[%emt 0:17:51]} Bf8 {[%emt 0:01:54]} 14. Ndf3 {[%emt 0:02:41]} Nxe5 {[%emt 0:03:45]} 15. Nxe5 {[%emt 0:01:45]} Ne4 {[%emt 0:05:05]} 16. Qe2 {[%emt 0:04:24]} f6 {[%emt 0:07:39]} 17. f3 {[%emt 0:10:24]} fxe5 {[%emt 0:09:34]} 18. fxe4 {[%emt 0:00:06]} exd4 {[%emt 0:00:42]} 19. Rh3 {[%emt 0:00:36] e5 would now be deadly.} dxe4 {[%emt 0:00:23]} 20. Bxe4 {[%emt 0:00:09]} Bxe4 {[%emt 0:00:19]} 21. Qxe4 {[%emt 0:00:04]} h6 {[%emt 0:03:44] With the idea ...Qd5.} 22. Bxd4 {[%emt 0:03:31] [#]} (22. Rf1 {is interesting.} Qd6 23. Bxd4 e5 24. Be3) 22... Rc6 {[%emt 0:43:51]} 23. c3 $14 Rxc3 $2 {[%emt 0:00:00][%mdl 8192]} 24. Rh5 $2 {[%emt 0:22:21]} (24. Bxc3 $18 {[%cal Oh3h6] aiming for Rxh6!} e5 25. Rf1 (25. Bxe5 Bc5+ 26. Kh1 Qe7 $18)) 24... Rc2 {White must now prevent ...Rd2.} 25. Rxh6 {[%emt 0:00:00]} Rxg2+ {[%emt 0:00:00]} 26. Kh1 {[%emt 0:00:00] [#] Strongly threatening Qh7+.} Qd5 $1 {[%emt 0:00:00]} 27. Qxg2 {[%emt 0:00:00]} Qxg2+ {[%emt 0:00:00]} ({Much weaker is} 27... Qxd4 $6 28. Rg1 $14) 28. Kxg2 {[%emt 0:00:00]} gxh6 $17 {[%emt 0:00:00][%mdl 4096] Endgame. KRB-KRB} 29. Kf3 {[%emt 0:00:00]} Rd8 {[%emt 0:00:00]} 30. Rg1+ {[%emt 0:00:00]} Kf7 {[%emt 0:00:00]} 31. Rg4 {[%emt 0:00:00]} e5 {[%emt 0:00:00]} 32. Bxe5 {[%emt 0:00:00]} Rd3+ {[%emt 0:00:00]} ({Don't play} 32... Bxa3 33. Rg7+ Ke6 34. Ke4 $11) 33. Ke4 {[%emt 0:00:00]} Rxb3 {[%emt 0:00:00]} 34. Rf4+ $1 {[%emt 0:00:00]} Ke8 {[%emt 0:00:00]} 35. a4 {[%emt 0:00:00]} Be7 {[%emt 0:00:00]} 36. Kd5 {[%emt 0:00:00]} b5 {[%emt 0:00:00]} 37. Ke6 {[%emt 0:02:35] Threatens to win with Rf7.} bxa4 {[%emt 0:00:00]} 38. Rxa4 {[%emt 0:00:06]} Rb6+ {[%emt 0:00:00]} 39. Kf5 {[%emt 0:01:07]} a6 {[%emt 0:00:00]} 40. Rc4 {[%emt 0:00:57]} Bd6 {[%emt 0:00:00]} 41. Bd4 {[%emt 0:31:27]} Rb4 {[%emt 0:27:52]} 42. Rxb4 {[%emt 0:00:14]} Bxb4 {[%emt 0:00:08]} 43. Kg6 {[%emt 0:00:00]} (43. Be3 $11) 43... Bd2 $15 {[%emt 0:00:00]} 44. Bb6 {[%emt 0:00:00]} Kd7 {[%emt 0:00:00] Blacks defense is rewarded with a draw.   Weighted Error Value: White=0.29 (precise) /Black=0.07 (flawless) .  Loses game:     	---       	Black=1      Missed win:     	White=1     	---        Mistake:       	White=1     	Black=1      Inaccurate:     	White=1     	Black=2      OK:         	White=14    	Black=17     Best:        	White=2     	Black=2      Strong:       	White=1     	Black=1} 1/2-1/2

[Event "Serbian League 2024"]
[Site "Bajina Basta"]
[Date "2024.09.28"]
[Round "1.10"]
[White "Stojanovic, Dalibor"]
[Black "Pap, Misa"]
[Result "1/2-1/2"]
[ECO "C54"]
[WhiteElo "2448"]
[BlackElo "2389"]
[Annotator "RC"]
[PlyCount "51"]
[EventDate "2024.09.26"]
[EventType "team-tourn"]
[EventCountry "SRB"]
[SourceTitle "playchess.com"]
[Source "ChessBase"]
[SourceQuality "1"]
[TimeControl "40/5400+30:1800+30"]

1. e4 {[%emt 0:00:06]} e5 {[%emt 0:00:47]} 2. Nf3 {[%emt 0:00:22]} Nc6 {[%emt 0:00:08]} 3. Bc4 {[%emt 0:00:51]} Nf6 {[%emt 0:00:08]} 4. d3 {[%emt 0:00:54]} Bc5 {[%emt 0:00:08]} 5. Bg5 {[%emt 0:03:13]} h6 {[%emt 0:01:15]} 6. Bh4 {[%emt 0:00:28]} d6 {[%emt 0:00:54]} 7. c3 {[%emt 0:00:53]} a5 {[%emt 0:01:22]} 8. a4 {[%emt 0:01:47]} Ba7 {[%emt 0:05:58]} 9. O-O {[%emt 0:04:10]} Qe7 {[%emt 0:06:38]} 10. Nbd2 {[%emt 0:04:38]} Bg4 {[%emt 0:08:03]} 11. Qb3 {[%emt 0:07:28]} Rb8 {[%emt 0:01:48]} 12. Rfe1 {[%emt 0:02:44]} g5 {[%emt 0:07:39]} 13. Bg3 {[%emt 0:00:39]} Nh5 {[%emt 0:01:32]} 14. Bd5 {[%emt 0:21:41]} Nd8 {[%emt 0:18:32]} 15. d4 {[%emt 0:06:12]} Nxg3 {[%emt 0:02:05]} 16. hxg3 {[%emt 0:00:18]} c6 {[%emt 0:01:26]} 17. Bc4 {[%emt 0:00:05]} Qf6 {[%emt 0:09:00]} 18. Be2 {[%emt 0:11:37]} O-O {[%emt 0:11:25]} 19. dxe5 {[%emt 0:12:52]} dxe5 {[%emt 0:00:16]} 20. Rf1 {[%emt 0:00:04]} Re8 {[%emt 0:06:51]} 21. Nc4 {[%emt 0:02:52]} Ne6 {[%emt 0:06:41]} 22. Qc2 {[%emt 0:01:24]} Nc5 {[%emt 0:00:44]} 23. Rad1 {[%emt 0:07:12]} Bh5 {[%emt 0:04:40]} 24. Rd6 {[%emt 0:04:55]} Qg7 {[%emt 0:00:55]} 25. Ne3 {[%emt 0:02:55]} Bg6 {[%emt 0:00:30]} 26. Nf5 {[%emt 0:00:46]} 1/2-1/2

[Event "Serbian League 2024"]
[Site "Bajina Basta"]
[Date "2024.09.28"]
[Round "1.11"]
[White "Damljanovic, Branko"]
[Black "Alimpic, Aleksa"]
[Result "1/2-1/2"]
[ECO "B10"]
[WhiteElo "2354"]
[BlackElo "2253"]
[Annotator "RC"]
[PlyCount "50"]
[EventDate "2024.09.26"]
[EventType "team-tourn"]
[EventCountry "SRB"]
[SourceTitle "playchess.com"]
[Source "ChessBase"]
[SourceQuality "1"]
[TimeControl "40/5400+30:1800+30"]

1. e4 {[%emt 0:00:53]} c6 {[%emt 0:00:11]} 2. d3 {[%emt 0:00:09]} d5 {[%emt 0:00:09]} 3. Nd2 {[%emt 0:00:02]} e5 {[%emt 0:00:36]} 4. Ngf3 {[%emt 0:00:07]} Bd6 {[%emt 0:00:13]} 5. d4 {[%emt 0:02:21]} exd4 {[%emt 0:01:05]} 6. exd5 {[%emt 0:00:09]} cxd5 {[%emt 0:00:19]} 7. Bb5+ {[%emt 0:03:41]} Nc6 {[%emt 0:01:59]} 8. Nxd4 {[%emt 0:00:40]} Nge7 {[%emt 0:03:57]} 9. N2b3 {[%emt 0:02:28]} O-O {[%emt 0:02:52]} 10. c3 {[%emt 0:05:44]} Qc7 {[%emt 0:03:02]} 11. Be2 {[%emt 0:02:32]} a6 {[%emt 0:01:15]} 12. h3 {[%emt 0:07:04]} h6 {[%emt 0:05:13]} 13. O-O {[%emt 0:01:50]} Re8 {[%emt 0:01:47]} 14. Bd3 {[%emt 0:08:25]} Bd7 {[%emt 0:12:39]} 15. Bc2 {[%emt 0:05:56]} Ne5 {[%emt 0:03:05]} 16. Qh5 {[%emt 0:10:53]} Nc4 {[%emt 0:17:34]} 17. Nd2 {[%emt 0:16:13]} Bh2+ {[%emt 0:09:02]} 18. Kh1 {[%emt 0:00:18]} Bf4 {[%emt 0:00:08]} 19. Nxc4 {[%emt 0:00:31]} dxc4 {[%emt 0:00:07]} 20. Bxf4 {[%emt 0:02:37]} Qxf4 {[%emt 0:00:07]} 21. Rad1 {[%emt 0:02:43]} Rad8 {[%emt 0:08:21]} 22. Kg1 {[%emt 0:04:03]} Qg5 {[%emt 0:06:40]} 23. Qxg5 {[%emt 0:01:48]} hxg5 {[%emt 0:01:36]} 24. Nf3 {[%emt 0:01:28]} f6 {[%emt 0:00:50]} 25. Rfe1 {[%emt 0:00:02]} Kf7 {[%emt 0:01:58]} 1/2-1/2

[Event "Serbian League 2024"]
[Site "Bajina Basta"]
[Date "2024.09.28"]
[Round "1.12"]
[White "Popovic, Milan S"]
[Black "Ivanovic, Marko"]
[Result "1-0"]
[ECO "B40"]
[WhiteElo "2367"]
[BlackElo "2240"]
[Annotator "RC"]
[PlyCount "95"]
[EventDate "2024.09.26"]
[EventType "team-tourn"]
[EventCountry "SRB"]
[SourceTitle "playchess.com"]
[Source "ChessBase"]
[SourceQuality "1"]
[TimeControl "40/5400+30:1800+30"]

1. e4 {[%emt 0:00:02]} c5 {[%emt 0:00:35]} 2. Nf3 {[%emt 0:00:29]} e6 {[%emt 0:00:31]} 3. g3 {[%emt 0:01:09]} Nc6 {[%emt 0:00:33]} 4. Bg2 {[%emt 0:00:05]} Nf6 {[%emt 0:00:42]} 5. Qe2 {[%emt 0:00:39]} d5 {[%emt 0:00:57]} 6. exd5 {[%emt 0:00:13]} Nxd5 {[%emt 0:00:16]} 7. O-O {[%emt 0:00:18]} Be7 {[%emt 0:00:09]} 8. Rd1 {[%emt 0:01:24]} O-O {[%emt 0:09:13]} 9. d4 {[%emt 0:01:41]} cxd4 {[%emt 0:02:18]} 10. Nxd4 {[%emt 0:00:06]} Nxd4 {[%emt 0:00:10]} 11. Rxd4 {[%emt 0:00:06]} Bf6 {[%emt 0:00:06]} 12. Rd1 {[%emt 0:01:09]} Qc7 {[%emt 0:01:33]} 13. c4 {[%emt 0:05:39]} Nb6 {[%emt 0:07:42]} 14. Na3 {[%emt 0:03:21]} Bd7 {[%emt 0:09:42]} 15. Bf4 {[%emt 0:08:20]} e5 {[%emt 0:07:38]} 16. Be3 {[%emt 0:00:53]} Rad8 {[%emt 0:07:13]} 17. c5 {[%emt 0:09:02]} Nc8 {[%emt 0:01:31]} 18. Nb5 {[%emt 0:05:33]} Qb8 {[%emt 0:00:35]} 19. Nc3 {[%emt 0:07:01]} Bc6 {[%emt 0:06:29]} 20. Nd5 {[%emt 0:17:34]} Bxd5 {[%emt 0:01:08]} 21. Bxd5 {[%emt 0:00:08]} Ne7 {[%emt 0:00:23]} 22. Be4 {[%emt 0:00:47]} Nc6 {[%emt 0:16:33]} 23. Qh5 {[%emt 0:05:32]} g6 {[%emt 0:01:57]} 24. Qf3 {[%emt 0:00:03]} Bg7 {[%emt 0:01:45]} 25. Bxc6 {[%emt 0:01:56]} bxc6 {[%emt 0:00:47]} 26. Qxc6 {[%emt 0:00:20]} Qb5 {[%emt 0:23:04]} 27. b3 Qxb3 {[%emt 0:00:00]} 28. Qa4 {[%emt 0:01:16]} Qb2 {[%emt 0:00:00]} 29. Rab1 {[%emt 0:09:18]} Rc8 {[%emt 0:00:00]} 30. Rd5 {[%emt 0:21:26]} Qe2 31. Rd7 {[%emt 0:00:00]} h5 {[%emt 0:00:00]} 32. h4 {[%emt 0:00:00]} Qf3 {[%emt 0:01:01]} 33. Qxa7 {[%emt 0:00:00]} e4 {[%emt 0:00:22]} 34. Qa4 {[%emt 0:00:00]} Be5 {[%emt 0:00:49]} 35. Qd1 {[%emt 0:00:00]} Qf5 {[%emt 0:00:25]} 36. Rd5 {[%emt 0:00:00]} Rfe8 {[%emt 0:00:34]} 37. Kg2 {[%emt 0:00:43]} Rc7 {[%emt 0:01:19]} 38. Qe2 {[%emt 0:01:30]} Qe6 {[%emt 0:00:18]} 39. Rbd1 {[%emt 0:00:06]} f5 {[%emt 0:00:29]} 40. Qd2 {[%emt 0:01:26]} Kh7 {[%emt 0:01:03]} 41. Rd7+ {[%emt 0:30:18]} Re7 {[%emt 0:30:07]} 42. Rxc7 {[%emt 0:00:51]} Bxc7 {[%emt 0:00:31]} 43. Qd5 {[%emt 0:00:29]} Qc8 {[%emt 0:00:00]} 44. Bg5 {[%emt 0:00:00]} Rg7 {[%emt 0:00:00]} 45. Bf6 {[%emt 0:00:00]} f4 {[%emt 0:00:00]} 46. Bxg7 {[%emt 0:00:00]} f3+ {[%emt 0:00:00]} 47. Kh2 {[%emt 0:00:00]} Bxg3+ {[%emt 0:00:00]} 48. fxg3 {[%emt 0:00:00]} 1-0